[Event "Titled Tuesday Blitz June 27 Early 2023"]
[White "Alahakoon, Isuru"]
[Black "Bauman_Guy"]
[WhiteFideId "9900993"]
[WhiteElo "2356"]
[BlackElo "2666"]
[Result "1/2-1/2"]
[Round "1"]
[TimeControl "180+2"]
[Date "2023.06.27"]
[WhiteClock "0:00:08"]
[BlackClock "0:00:15"]
[Board "144"]

1. Nf3 {[%clk 0:02:58]}  d5 {[%clk 0:03:00]} 2. e3 {[%clk 0:02:58]}  c6 {[%clk 0:03:00]} 3. c4 {[%clk 0:02:58]}  Nf6 {[%clk 0:03:00]} 4. d4 {[%clk 0:02:58]}  g6 {[%clk 0:03:00]} 5. Nc3 {[%clk 0:02:57]}  Bg7 {[%clk 0:03:01]} 6. Be2 {[%clk 0:02:57]}  O-O {[%clk 0:03:01]} 7. O-O {[%clk 0:02:58]}  a6 {[%clk 0:03:01]} 8. a4 {[%clk 0:02:53]}  Nbd7 {[%clk 0:02:57]} 9. cxd5 {[%clk 0:02:52]}  cxd5 {[%clk 0:02:58]} 10. Qb3 {[%clk 0:02:50]}  e6 {[%clk 0:02:58]} 11. Bd2 {[%clk 0:02:49]}  Qb6 {[%clk 0:02:57]} 12. Qa3 {[%clk 0:02:45]}  Ne4 {[%clk 0:02:58]} 13. Nxe4 {[%clk 0:02:40]}  dxe4 {[%clk 0:02:58]} 14. Ng5 {[%clk 0:02:40]}  Nf6 {[%clk 0:02:58]} 15. a5 {[%clk 0:02:36]}  Qd8 {[%clk 0:02:55]} 16. Bb4 {[%clk 0:02:27]}  Re8 {[%clk 0:02:55]} 17. f3 {[%clk 0:02:17]}  exf3 {[%clk 0:02:47]} 18. Bxf3 {[%clk 0:02:14]}  h6 {[%clk 0:02:34]} 19. Ne4 {[%clk 0:02:11]}  Nd5 {[%clk 0:02:34]} 20. Bd2 {[%clk 0:02:08]}  Bd7 {[%clk 0:02:31]} 21. Nd6 {[%clk 0:02:07]}  Bf8 {[%clk 0:02:31]} 22. Bxd5 {[%clk 0:02:02]}  exd5 {[%clk 0:02:31]} 23. Bb4 {[%clk 0:01:58]}  Bxd6 {[%clk 0:02:20]} 24. Bxd6 {[%clk 0:01:57]}  Bf5 {[%clk 0:02:13]} 25. Be5 {[%clk 0:01:52]}  f6 {[%clk 0:02:13]} 26. Bf4 {[%clk 0:01:52]}  Kg7 {[%clk 0:02:10]} 27. Rac1 {[%clk 0:01:49]}  Rc8 {[%clk 0:02:09]} 28. Qb4 {[%clk 0:01:48]}  Qd7 {[%clk 0:02:07]} 29. Qb6 {[%clk 0:01:41]}  Re6 {[%clk 0:01:58]} 30. Qb3 {[%clk 0:01:29]}  Rec6 {[%clk 0:01:57]} 31. Rxc6 {[%clk 0:01:26]}  Rxc6 {[%clk 0:01:56]} 32. h3 {[%clk 0:01:26]}  g5 {[%clk 0:01:56]} 33. Bg3 {[%clk 0:01:24]}  Be4 {[%clk 0:01:57]} 34. Qb4 {[%clk 0:01:17]}  h5 {[%clk 0:01:55]} 35. b3 {[%clk 0:00:48]}  h4 {[%clk 0:01:54]} 36. Bh2 {[%clk 0:00:47]}  g4 {[%clk 0:01:47]} 37. hxg4 {[%clk 0:00:45]}  Rc2 {[%clk 0:01:44]} 38. Rf2 {[%clk 0:00:43]}  Rxf2 {[%clk 0:00:58]} 39. Kxf2 {[%clk 0:00:42]}  Kg8 {[%clk 0:00:52]} 40. Qc5 {[%clk 0:00:35]}  Qxg4 {[%clk 0:00:49]} 41. Ke1 {[%clk 0:00:19]}  Bxg2 {[%clk 0:00:36]} 42. Qe7 {[%clk 0:00:17]}  Qe4 {[%clk 0:00:30]} 43. Qxe4 {[%clk 0:00:14]}  Bxe4 {[%clk 0:00:28]} 44. Kf2 {[%clk 0:00:15]}  Kf7 {[%clk 0:00:24]} 45. Bf4 {[%clk 0:00:13]}  Ke6 {[%clk 0:00:23]} 46. Bc7 {[%clk 0:00:12]}  Kd7 {[%clk 0:00:22]} 47. Bb6 {[%clk 0:00:12]}  Kc6 {[%clk 0:00:20]} 48. Bd8 {[%clk 0:00:12]}  h3 {[%clk 0:00:19]} 49. Kg3 {[%clk 0:00:11]}  Bf5 {[%clk 0:00:19]} 50. Bxf6 {[%clk 0:00:10]}  Kb5 {[%clk 0:00:19]} 51. Bd8 {[%clk 0:00:10]}  Kb4 {[%clk 0:00:19]} 52. Bc7 {[%clk 0:00:09]}  Kxb3 {[%clk 0:00:20]} 53. Kf2 {[%clk 0:00:08]}  Kc4 {[%clk 0:00:20]} 54. Bb6 {[%clk 0:00:08]}  Kd3 {[%clk 0:00:21]} 55. Bd8 {[%clk 0:00:08]}  h2 {[%clk 0:00:19]} 56. Kg2 {[%clk 0:00:07]}  Kxe3 {[%clk 0:00:18]} 57. Bb6 {[%clk 0:00:08]}  Ke4 {[%clk 0:00:16]} 58. Kxh2 {[%clk 0:00:08]}  Bd7 {[%clk 0:00:17]} 59. Kg3 {[%clk 0:00:08]}  Bc6 {[%clk 0:00:18]} 60. Kf2 {[%clk 0:00:08]}  Kd3 {[%clk 0:00:18]} 61. Kf3 {[%clk 0:00:08]}  Kc4 {[%clk 0:00:15]} 62. Kf4 {[%clk 0:00:08]} 1/2-1/2


[Site "https://www.chess.com"]

[Event "Titled Tuesday Blitz June 27 Early 2023"]
[White "Bogaudinov, Rushan"]
[Black "Alex_Sahakyan2006"]
[WhiteFideId "4129288"]
[WhiteElo "2353"]
[BlackElo "2658"]
[Result "0-1"]
[Round "1"]
[TimeControl "180+2"]
[Date "2023.06.27"]
[WhiteClock "0:00:00"]
[BlackClock "0:00:47"]
[Board "148"]

1. d4 {[%clk 0:02:43]}  Nf6 {[%clk 0:02:58]} 2. Nf3 {[%clk 0:02:41]}  g6 {[%clk 0:02:53]} 3. g3 {[%clk 0:02:39]}  Bg7 {[%clk 0:02:52]} 4. Bg2 {[%clk 0:02:39]}  c5 {[%clk 0:02:51]} 5. O-O {[%clk 0:02:38]}  cxd4 {[%clk 0:02:50]} 6. Nxd4 {[%clk 0:02:38]}  O-O {[%clk 0:02:50]} 7. e4 {[%clk 0:02:32]}  d6 {[%clk 0:02:49]} 8. c3 {[%clk 0:02:31]}  Bg4 {[%clk 0:02:40]} 9. Qb3 {[%clk 0:02:27]}  Qc8 {[%clk 0:02:36]} 10. e5 {[%clk 0:02:02]}  dxe5 {[%clk 0:02:34]} 11. Bxb7 {[%clk 0:02:01]}  Qc7 {[%clk 0:02:34]} 12. Bxa8 {[%clk 0:01:59]}  exd4 {[%clk 0:02:32]} 13. Bg2 {[%clk 0:01:54]}  d3 {[%clk 0:02:28]} 14. Be3 {[%clk 0:01:47]}  Be2 {[%clk 0:02:24]} 15. Re1 {[%clk 0:01:46]}  Ng4 {[%clk 0:02:24]} 16. Qb7 {[%clk 0:01:13]}  Qxb7 {[%clk 0:01:55]} 17. Bxb7 {[%clk 0:01:12]}  Nxe3 {[%clk 0:01:56]} 18. fxe3 {[%clk 0:01:11]}  Bh6 {[%clk 0:01:57]} 19. Kf2 {[%clk 0:01:10]}  Nd7 {[%clk 0:01:57]} 20. Nd2 {[%clk 0:00:59]}  Ne5 {[%clk 0:01:52]} 21. Bf3 {[%clk 0:00:43]}  Bxf3 {[%clk 0:01:12]} 22. Nxf3 {[%clk 0:00:42]}  Ng4+ {[%clk 0:01:13]} 23. Kg1 {[%clk 0:00:39]}  Rb8 {[%clk 0:01:07]} 24. b3 {[%clk 0:00:38]}  Bxe3+ {[%clk 0:01:06]} 25. Kg2 {[%clk 0:00:35]}  Bc5 {[%clk 0:01:04]} 26. Nd2 {[%clk 0:00:21]}  Ne3+ {[%clk 0:01:02]} 27. Kf3 {[%clk 0:00:21]}  Nc2 {[%clk 0:01:02]} 28. Rad1 {[%clk 0:00:17]}  Nxe1+ {[%clk 0:00:59]} 29. Rxe1 {[%clk 0:00:18]}  Kf8 {[%clk 0:00:56]} 30. Re4 {[%clk 0:00:16]}  f5 {[%clk 0:00:55]} 31. Rc4 {[%clk 0:00:16]}  Bb6 {[%clk 0:00:54]} 32. b4 {[%clk 0:00:15]}  e5 {[%clk 0:00:54]} 33. a4 {[%clk 0:00:13]}  e4+ {[%clk 0:00:54]} 34. Kf4 {[%clk 0:00:10]}  g5+ {[%clk 0:00:47]} 35. Kxf5 {[%clk 0:00:09]}  e3 {[%clk 0:00:47]} 36. Nf3 {[%clk 0:00:03]}  d2 {[%clk 0:00:48]} 37. Nxd2 {[%clk 0:00:01]}  exd2 {[%clk 0:00:49]} 38. a5 {[%clk 0:00:02]}  d1=Q {[%clk 0:00:47]} 39. axb6 {[%clk 0:00:00]}  Qd5+ {[%clk 0:00:47]} 0-1


[Site "https://www.chess.com"]

[Event "Titled Tuesday Blitz June 27 Early 2023"]
[White "Sahib Singh"]
[Black "Glavina, Pablo"]
[WhiteFideId "25618342"]
[BlackFideId "100234"]
[WhiteElo "2658"]
[BlackElo "2352"]
[Result "1-0"]
[Round "1"]
[TimeControl "180+2"]
[Date "2023.06.27"]
[WhiteClock "0:00:14"]
[BlackClock "0:00:12"]
[Board "149"]

1. e4 {[%clk 0:03:00]}  e5 {[%clk 0:02:59]} 2. Bc4 {[%clk 0:02:59]}  Nf6 {[%clk 0:02:57]} 3. d4 {[%clk 0:02:57]}  exd4 {[%clk 0:02:53]} 4. Nf3 {[%clk 0:02:57]}  Nc6 {[%clk 0:02:52]} 5. e5 {[%clk 0:02:43]}  d5 {[%clk 0:02:52]} 6. Bb5 {[%clk 0:02:43]}  Ne4 {[%clk 0:02:52]} 7. Nxd4 {[%clk 0:02:37]}  Bc5 {[%clk 0:02:52]} 8. O-O {[%clk 0:02:24]}  O-O {[%clk 0:02:47]} 9. Nxc6 {[%clk 0:02:15]}  bxc6 {[%clk 0:02:46]} 10. Bd3 {[%clk 0:02:04]}  Qe7 {[%clk 0:02:32]} 11. Bxe4 {[%clk 0:01:30]}  dxe4 {[%clk 0:02:31]} 12. Bf4 {[%clk 0:01:26]}  Rb8 {[%clk 0:02:20]} 13. Nc3 {[%clk 0:01:21]}  Bf5 {[%clk 0:02:08]} 14. Rb1 {[%clk 0:01:13]}  Rfd8 {[%clk 0:02:02]} 15. Qe2 {[%clk 0:01:08]}  Bd4 {[%clk 0:01:38]} 16. Nxe4 {[%clk 0:01:00]}  Bxe5 {[%clk 0:01:33]} 17. Ng3 {[%clk 0:00:51]}  Bxc2 {[%clk 0:01:13]} 18. Qxe5 {[%clk 0:00:35]}  Qxe5 {[%clk 0:01:11]} 19. Bxe5 {[%clk 0:00:36]}  Bxb1 {[%clk 0:01:12]} 20. Rxb1 {[%clk 0:00:36]}  Re8 {[%clk 0:01:03]} 21. Bxc7 {[%clk 0:00:33]}  Rb7 {[%clk 0:01:00]} 22. Ba5 {[%clk 0:00:30]}  Rd7 {[%clk 0:00:53]} 23. Kf1 {[%clk 0:00:25]}  Rd5 {[%clk 0:00:52]} 24. Bc3 {[%clk 0:00:24]}  g6 {[%clk 0:00:45]} 25. Re1 {[%clk 0:00:23]}  Rxe1+ {[%clk 0:00:41]} 26. Kxe1 {[%clk 0:00:24]}  f5 {[%clk 0:00:42]} 27. Ne2 {[%clk 0:00:24]}  Kf7 {[%clk 0:00:40]} 28. Nf4 {[%clk 0:00:22]}  Rd7 {[%clk 0:00:36]} 29. h4 {[%clk 0:00:22]}  Re7+ {[%clk 0:00:32]} 30. Kd2 {[%clk 0:00:20]}  Re4 {[%clk 0:00:33]} 31. g3 {[%clk 0:00:20]}  h6 {[%clk 0:00:31]} 32. f3 {[%clk 0:00:20]}  Re7 {[%clk 0:00:28]} 33. h5 {[%clk 0:00:16]}  g5 {[%clk 0:00:27]} 34. Ng6 {[%clk 0:00:16]}  Rd7+ {[%clk 0:00:28]} 35. Ke3 {[%clk 0:00:16]}  Rd5 {[%clk 0:00:22]} 36. Ne5+ {[%clk 0:00:16]}  Ke6 {[%clk 0:00:20]} 37. Nxc6 {[%clk 0:00:16]}  Rc5 {[%clk 0:00:20]} 38. Nd4+ {[%clk 0:00:15]}  Kd6 {[%clk 0:00:12]} 39. Bb4 {[%clk 0:00:14]} 1-0


[Site "https://www.chess.com"]

[Event "Titled Tuesday Blitz June 27 Early 2023"]
[White "Manukyan, Sargis A."]
[Black "Rodrigues, Bruno Morado"]
[WhiteFideId "13303970"]
[BlackFideId "2115654"]
[WhiteElo "2655"]
[BlackElo "2351"]
[Result "1-0"]
[Round "1"]
[TimeControl "180+2"]
[Date "2023.06.27"]
[WhiteClock "0:01:19"]
[BlackClock "0:00:11"]
[Board "151"]

1. d4 {[%clk 0:03:00]}  d5 {[%clk 0:02:59]} 2. c4 {[%clk 0:02:58]}  c6 {[%clk 0:03:00]} 3. Nc3 {[%clk 0:02:56]}  Nf6 {[%clk 0:03:00]} 4. e3 {[%clk 0:02:53]}  e6 {[%clk 0:02:57]} 5. Nf3 {[%clk 0:02:53]}  Nbd7 {[%clk 0:02:51]} 6. Bd3 {[%clk 0:02:50]}  Bd6 {[%clk 0:02:51]} 7. O-O {[%clk 0:02:50]}  O-O {[%clk 0:02:47]} 8. e4 {[%clk 0:02:47]}  dxc4 {[%clk 0:02:47]} 9. Bxc4 {[%clk 0:02:47]}  e5 {[%clk 0:02:46]} 10. Bg5 {[%clk 0:02:42]}  Qe7 {[%clk 0:02:39]} 11. d5 {[%clk 0:02:40]}  Nb6 {[%clk 0:02:29]} 12. Bb3 {[%clk 0:02:40]}  Bg4 {[%clk 0:02:28]} 13. dxc6 {[%clk 0:02:38]}  bxc6 {[%clk 0:02:25]} 14. h3 {[%clk 0:02:35]}  Bh5 {[%clk 0:02:25]} 15. g4 {[%clk 0:02:31]}  Bg6 {[%clk 0:02:25]} 16. Qe2 {[%clk 0:02:30]}  Rfd8 {[%clk 0:02:20]} 17. Rfd1 {[%clk 0:02:30]}  Bc5 {[%clk 0:02:17]} 18. Kg2 {[%clk 0:02:20]}  Bd4 {[%clk 0:02:04]} 19. Nh4 {[%clk 0:01:55]}  Bxc3 {[%clk 0:01:57]} 20. bxc3 {[%clk 0:01:54]}  Qc5 {[%clk 0:01:41]} 21. Bxf6 {[%clk 0:01:38]}  gxf6 {[%clk 0:01:40]} 22. Qf3 {[%clk 0:01:37]}  Nc4 {[%clk 0:01:22]} 23. Nxg6 {[%clk 0:01:31]}  hxg6 {[%clk 0:01:23]} 24. Qxf6 {[%clk 0:01:29]}  Rd6 {[%clk 0:00:47]} 25. Rxd6 {[%clk 0:01:27]}  Qxd6 {[%clk 0:00:48]} 26. Qg5 {[%clk 0:01:19]}  Na5 {[%clk 0:00:11]} 27. Rd1 {[%clk 0:01:19]} 1-0


[Site "https://www.chess.com"]

[Event "Titled Tuesday Blitz June 27 Early 2023"]
[White "Karttunen, Mika"]
[Black "Sovetbekova, Nurai"]
[WhiteFideId "502081"]
[BlackFideId "13801910"]
[WhiteElo "2651"]
[BlackElo "2348"]
[Result "1-0"]
[Round "1"]
[TimeControl "180+2"]
[Date "2023.06.27"]
[WhiteClock "0:00:16"]
[BlackClock "0:00:00"]
[Board "153"]

1. e4 {[%clk 0:03:00]}  c5 {[%clk 0:02:57]} 2. Nf3 {[%clk 0:03:00]}  Nc6 {[%clk 0:02:56]} 3. Bb5 {[%clk 0:03:00]}  e5 {[%clk 0:02:49]} 4. Bxc6 {[%clk 0:02:58]}  dxc6 {[%clk 0:02:49]} 5. d3 {[%clk 0:02:56]}  Bd6 {[%clk 0:02:45]} 6. h3 {[%clk 0:02:54]}  Ne7 {[%clk 0:02:45]} 7. Nbd2 {[%clk 0:02:53]}  O-O {[%clk 0:02:44]} 8. Nc4 {[%clk 0:02:52]}  f6 {[%clk 0:02:41]} 9. Nxd6 {[%clk 0:02:38]}  Qxd6 {[%clk 0:02:41]} 10. Be3 {[%clk 0:02:37]}  Be6 {[%clk 0:02:37]} 11. Nd2 {[%clk 0:02:34]}  Rad8 {[%clk 0:02:28]} 12. O-O {[%clk 0:02:17]}  b5 {[%clk 0:02:05]} 13. Qe2 {[%clk 0:02:06]}  Nc8 {[%clk 0:01:54]} 14. b3 {[%clk 0:02:01]}  Nb6 {[%clk 0:01:52]} 15. a4 {[%clk 0:01:37]}  bxa4 {[%clk 0:01:30]} 16. bxa4 {[%clk 0:01:36]}  Rb8 {[%clk 0:01:30]} 17. a5 {[%clk 0:01:33]}  Nd7 {[%clk 0:01:28]} 18. Rfb1 {[%clk 0:01:18]}  Qc7 {[%clk 0:01:26]} 19. Nb3 {[%clk 0:00:49]}  c4 {[%clk 0:00:47]} 20. dxc4 {[%clk 0:00:43]}  Rb4 {[%clk 0:00:47]} 21. Nd2 {[%clk 0:00:38]}  Rfb8 {[%clk 0:00:42]} 22. Rb3 {[%clk 0:00:36]}  c5 {[%clk 0:00:33]} 23. Qd3 {[%clk 0:00:35]}  R8b7 {[%clk 0:00:24]} 24. Qc3 {[%clk 0:00:31]}  Nb8 {[%clk 0:00:21]} 25. Kh1 {[%clk 0:00:18]}  Qe7 {[%clk 0:00:20]} 26. Rab1 {[%clk 0:00:17]}  Nc6 {[%clk 0:00:20]} 27. Rxb4 {[%clk 0:00:17]}  Rxb4 {[%clk 0:00:15]} 28. Rxb4 {[%clk 0:00:16]}  cxb4 {[%clk 0:00:15]} 29. Qa1 {[%clk 0:00:15]}  Qd8 {[%clk 0:00:14]} 30. a6 {[%clk 0:00:15]}  Qc7 {[%clk 0:00:11]} 31. Kg1 {[%clk 0:00:15]}  Ne7 {[%clk 0:00:08]} 32. Qa4 {[%clk 0:00:15]}  Kf7 {[%clk 0:00:07]} 33. Qxb4 {[%clk 0:00:15]}  Nc6 {[%clk 0:00:06]} 34. Qc5 {[%clk 0:00:15]}  Qd7 {[%clk 0:00:04]} 35. Kh2 {[%clk 0:00:15]}  Nd4 {[%clk 0:00:04]} 36. Bxd4 {[%clk 0:00:15]}  exd4 {[%clk 0:00:05]} 37. Nf3 {[%clk 0:00:15]}  Kg6 {[%clk 0:00:04]} 38. Nxd4 {[%clk 0:00:15]}  Bf7 {[%clk 0:00:03]} 39. Qf5+ {[%clk 0:00:15]}  Qxf5 {[%clk 0:00:00]} 40. exf5+ {[%clk 0:00:16]} 1-0


[Site "https://www.chess.com"]

[Event "Titled Tuesday Blitz June 27 Early 2023"]
[White "Tarasova, Viktoriya"]
[Black "Leon Oquendo, Jorge"]
[WhiteFideId "4175840"]
[BlackFideId "3514803"]
[WhiteElo "2347"]
[BlackElo "2650"]
[Result "0-1"]
[Round "1"]
[TimeControl "180+2"]
[Date "2023.06.27"]
[WhiteClock "0:00:00"]
[BlackClock "0:00:08"]
[Board "154"]

1. d4 {[%clk 0:03:00]}  Nf6 {[%clk 0:02:59]} 2. c4 {[%clk 0:03:00]}  e6 {[%clk 0:02:57]} 3. Nc3 {[%clk 0:03:00]}  d5 {[%clk 0:02:57]} 4. cxd5 {[%clk 0:02:59]}  exd5 {[%clk 0:02:57]} 5. Bg5 {[%clk 0:02:58]}  Be7 {[%clk 0:02:57]} 6. Qc2 {[%clk 0:02:59]}  O-O {[%clk 0:02:56]} 7. e3 {[%clk 0:02:59]}  Nbd7 {[%clk 0:02:53]} 8. Bd3 {[%clk 0:02:58]}  h6 {[%clk 0:02:51]} 9. Bh4 {[%clk 0:02:58]}  c5 {[%clk 0:02:50]} 10. Nge2 {[%clk 0:02:57]}  cxd4 {[%clk 0:02:40]} 11. exd4 {[%clk 0:02:57]}  Re8 {[%clk 0:02:34]} 12. O-O {[%clk 0:02:57]}  a6 {[%clk 0:02:34]} 13. Rfe1 {[%clk 0:02:53]}  Nf8 {[%clk 0:02:32]} 14. Qb3 {[%clk 0:02:07]}  Ne6 {[%clk 0:01:17]} 15. Rad1 {[%clk 0:02:01]}  b5 {[%clk 0:01:15]} 16. a3 {[%clk 0:01:59]}  Bb7 {[%clk 0:01:14]} 17. Bb1 {[%clk 0:01:59]}  Rc8 {[%clk 0:01:11]} 18. Bf5 {[%clk 0:01:40]}  Rc4 {[%clk 0:01:09]} 19. Bxe6 {[%clk 0:01:34]}  fxe6 {[%clk 0:01:10]} 20. Nf4 {[%clk 0:01:31]}  Bc8 {[%clk 0:01:01]} 21. Nxe6 {[%clk 0:01:25]}  Qd6 {[%clk 0:00:50]} 22. Bg3 {[%clk 0:01:19]}  Qc6 {[%clk 0:00:47]} 23. Nf4 {[%clk 0:01:16]}  Bd6 {[%clk 0:00:22]} 24. Rxe8+ {[%clk 0:01:04]}  Nxe8 {[%clk 0:00:23]} 25. Nce2 {[%clk 0:00:33]}  Nf6 {[%clk 0:00:20]} 26. f3 {[%clk 0:00:28]}  Bf5 {[%clk 0:00:20]} 27. h3 {[%clk 0:00:25]}  Bc2 {[%clk 0:00:20]} 28. Qe3 {[%clk 0:00:21]}  Bxd1 {[%clk 0:00:20]} 29. Qe6+ {[%clk 0:00:22]}  Kh8 {[%clk 0:00:17]} 30. Ng6+ {[%clk 0:00:21]}  Kh7 {[%clk 0:00:17]} 31. Bxd6 {[%clk 0:00:20]}  Bxe2 {[%clk 0:00:16]} 32. Ne5 {[%clk 0:00:18]}  Qe8 {[%clk 0:00:14]} 33. Qf5+ {[%clk 0:00:16]}  Kg8 {[%clk 0:00:13]} 34. Ng6 {[%clk 0:00:11]}  Bd1 {[%clk 0:00:10]} 35. Ne7+ {[%clk 0:00:11]}  Kf7 {[%clk 0:00:09]} 36. Kh2 {[%clk 0:00:09]}  Bc2 {[%clk 0:00:08]} 37. Qf4 {[%clk 0:00:08]}  Qd7 {[%clk 0:00:08]} 38. g4 {[%clk 0:00:08]}  Rc6 {[%clk 0:00:07]} 39. Bc5 {[%clk 0:00:02]}  Re6 {[%clk 0:00:07]} 40. g5 {[%clk 0:00:02]}  hxg5 {[%clk 0:00:07]} 41. Qxg5 {[%clk 0:00:02]}  Rxe7 {[%clk 0:00:07]} 42. Bxe7 {[%clk 0:00:00]}  Qxe7 {[%clk 0:00:08]} 0-1


[Site "https://www.chess.com"]

[Event "Titled Tuesday Blitz June 27 Early 2023"]
[White "Ankerst, Mihael"]
[Black "Schnaider, Ilan"]
[WhiteFideId "14602369"]
[BlackFideId "169013"]
[WhiteElo "2343"]
[BlackElo "2648"]
[Result "0-1"]
[Round "1"]
[TimeControl "180+2"]
[Date "2023.06.27"]
[WhiteClock "0:00:04"]
[BlackClock "0:01:55"]
[Board "156"]

1. e4 {[%clk 0:01:42]}  d5 {[%clk 0:02:52]} 2. exd5 {[%clk 0:01:41]}  Qxd5 {[%clk 0:02:53]} 3. c4 {[%clk 0:01:42]}  Qa5 {[%clk 0:02:52]} 4. Nc3 {[%clk 0:01:42]}  e5 {[%clk 0:02:46]} 5. Nf3 {[%clk 0:01:42]}  c6 {[%clk 0:02:45]} 6. d4 {[%clk 0:01:43]}  exd4 {[%clk 0:02:45]} 7. Nxd4 {[%clk 0:01:42]}  Nf6 {[%clk 0:02:44]} 8. Be2 {[%clk 0:01:40]}  Be7 {[%clk 0:02:44]} 9. O-O {[%clk 0:01:40]}  O-O {[%clk 0:02:44]} 10. Bf4 {[%clk 0:01:38]}  Rd8 {[%clk 0:02:43]} 11. Nb3 {[%clk 0:01:36]}  Qf5 {[%clk 0:02:40]} 12. Qc1 {[%clk 0:01:34]}  Be6 {[%clk 0:02:35]} 13. Re1 {[%clk 0:01:27]}  Na6 {[%clk 0:02:29]} 14. Be3 {[%clk 0:01:20]}  Bd6 {[%clk 0:02:26]} 15. Nd4 {[%clk 0:01:17]}  Qe5 {[%clk 0:02:17]} 16. f4 {[%clk 0:01:16]}  Qa5 {[%clk 0:02:12]} 17. Nxe6 {[%clk 0:01:15]}  fxe6 {[%clk 0:02:13]} 18. Bf3 {[%clk 0:01:05]}  Nb4 {[%clk 0:02:04]} 19. Rd1 {[%clk 0:01:00]}  e5 {[%clk 0:02:03]} 20. f5 {[%clk 0:00:55]}  e4 {[%clk 0:02:01]} 21. Bxe4 {[%clk 0:00:10]}  Qe5 {[%clk 0:01:59]} 22. Rxd6 {[%clk 0:00:10]}  Rxd6 {[%clk 0:01:59]} 23. Bf4 {[%clk 0:00:11]}  Qd4+ {[%clk 0:01:58]} 24. Kh1 {[%clk 0:00:10]}  Nxe4 {[%clk 0:01:58]} 25. Bxd6 {[%clk 0:00:07]}  Nxd6 {[%clk 0:01:58]} 26. Ne2 {[%clk 0:00:06]}  Qe5 {[%clk 0:01:57]} 27. Ng3 {[%clk 0:00:06]}  Nd3 {[%clk 0:01:58]} 28. Qc2 {[%clk 0:00:06]}  Qd4 {[%clk 0:01:57]} 29. Rf1 {[%clk 0:00:04]}  Re8 {[%clk 0:01:56]} 30. Qd2 {[%clk 0:00:05]}  Nxc4 {[%clk 0:01:55]} 31. Qg5 {[%clk 0:00:05]}  Nf2+ {[%clk 0:01:54]} 32. Kg1 {[%clk 0:00:04]}  Nh3+ {[%clk 0:01:54]} 33. Kh1 {[%clk 0:00:04]}  Qg1+ {[%clk 0:01:54]} 34. Rxg1 {[%clk 0:00:04]}  Nf2# {[%clk 0:01:55]} 0-1


[Site "https://www.chess.com"]

[Event "Titled Tuesday Blitz June 27 Early 2023"]
[White "Weishaeutel, Moritz"]
[Black "arenal72"]
[WhiteFideId "12967300"]
[WhiteElo "2647"]
[BlackElo "2343"]
[Result "1/2-1/2"]
[Round "1"]
[TimeControl "180+2"]
[Date "2023.06.27"]
[WhiteClock "0:00:44"]
[BlackClock "0:00:17"]
[Board "157"]

1. e4 {[%clk 0:03:00]}  c6 {[%clk 0:02:55]} 2. d4 {[%clk 0:03:01]}  d5 {[%clk 0:02:51]} 3. Nd2 {[%clk 0:03:01]}  dxe4 {[%clk 0:02:43]} 4. Nxe4 {[%clk 0:03:02]}  Nf6 {[%clk 0:02:35]} 5. Nxf6+ {[%clk 0:03:02]}  exf6 {[%clk 0:02:35]} 6. c3 {[%clk 0:03:03]}  Bd6 {[%clk 0:02:35]} 7. Bd3 {[%clk 0:03:04]}  O-O {[%clk 0:02:35]} 8. Ne2 {[%clk 0:03:04]}  Nd7 {[%clk 0:02:33]} 9. O-O {[%clk 0:03:04]}  Nb6 {[%clk 0:02:33]} 10. Bf4 {[%clk 0:03:01]}  Bg4 {[%clk 0:02:28]} 11. Bxd6 {[%clk 0:02:57]}  Qxd6 {[%clk 0:02:27]} 12. Qc2 {[%clk 0:02:58]}  g6 {[%clk 0:02:24]} 13. Ng3 {[%clk 0:02:57]}  Kg7 {[%clk 0:02:14]} 14. h3 {[%clk 0:02:50]}  Be6 {[%clk 0:02:08]} 15. Rfe1 {[%clk 0:02:50]}  Rae8 {[%clk 0:02:05]} 16. Ne4 {[%clk 0:02:48]}  Qc7 {[%clk 0:02:04]} 17. Nc5 {[%clk 0:02:41]}  Bc4 {[%clk 0:02:02]} 18. a4 {[%clk 0:02:29]}  Bxd3 {[%clk 0:01:58]} 19. Qxd3 {[%clk 0:02:30]}  f5 {[%clk 0:01:57]} 20. a5 {[%clk 0:02:26]}  Nd5 {[%clk 0:01:57]} 21. c4 {[%clk 0:01:49]}  Nf6 {[%clk 0:01:46]} 22. b4 {[%clk 0:01:42]}  b6 {[%clk 0:01:43]} 23. Nb3 {[%clk 0:01:42]}  Re4 {[%clk 0:01:36]} 24. axb6 {[%clk 0:01:40]}  axb6 {[%clk 0:01:36]} 25. Nd2 {[%clk 0:01:38]}  Rxe1+ {[%clk 0:01:32]} 26. Rxe1 {[%clk 0:01:38]}  Rd8 {[%clk 0:01:33]} 27. Qc3 {[%clk 0:01:36]}  Qf4 {[%clk 0:01:30]} 28. Nf3 {[%clk 0:01:31]}  Qd6 {[%clk 0:01:18]} 29. Rd1 {[%clk 0:01:15]}  Ne4 {[%clk 0:01:17]} 30. Qb2 {[%clk 0:01:15]}  f6 {[%clk 0:01:16]} 31. d5 {[%clk 0:01:13]}  cxd5 {[%clk 0:01:12]} 32. Rxd5 {[%clk 0:01:11]}  Qc7 {[%clk 0:01:13]} 33. Nd4 {[%clk 0:01:09]}  Kf7 {[%clk 0:00:59]} 34. Nb5 {[%clk 0:01:09]}  Qc8 {[%clk 0:00:53]} 35. Qd4 {[%clk 0:01:05]}  Rxd5 {[%clk 0:00:49]} 36. Qxd5+ {[%clk 0:01:06]}  Qe6 {[%clk 0:00:49]} 37. Qb7+ {[%clk 0:01:03]}  Kg8 {[%clk 0:00:49]} 38. Qb8+ {[%clk 0:00:58]}  Kg7 {[%clk 0:00:46]} 39. Qc7+ {[%clk 0:00:59]}  Kh6 {[%clk 0:00:45]} 40. Nd4 {[%clk 0:00:56]}  Qe5 {[%clk 0:00:40]} 41. Qxb6 {[%clk 0:00:50]}  Nd2 {[%clk 0:00:32]} 42. Nf3 {[%clk 0:00:51]}  Qa1+ {[%clk 0:00:31]} 43. Kh2 {[%clk 0:00:46]}  Nf1+ {[%clk 0:00:30]} 44. Kg1 {[%clk 0:00:46]}  Ng3+ {[%clk 0:00:21]} 45. Kh2 {[%clk 0:00:46]}  Nf1+ {[%clk 0:00:21]} 46. Kg1 {[%clk 0:00:46]}  Ng3+ {[%clk 0:00:17]} 47. Kh2 {[%clk 0:00:44]}  Nf1+ {[%clk 0:00:17]} 1/2-1/2


[Site "https://www.chess.com"]